bitfinex/quotes_BTCUSD_20250129
["timestamp","ask_amount","ask_price","bid_price","bid_amount"]
[1738181262317,0.295264,103260.0,103250.0,0.00029799]
[1738181262525,0.295264,103260.0,103250.0,0.00077785]
[1738181262526,0.51430716,103260.0,103250.0,0.00077785]
[1738181262737,0.76538382,103260.0,103250.0,0.00077785]
[1738181262950,0.02,103210.0,103200.0,0.19408278]
[1738181263164,0.02,103210.0,103200.0,0.19423682]
[1738181263165,0.10160083,103210.0,103200.0,0.19423682]
[1738181263706,0.25160083,103210.0,103200.0,0.00044182]
[1738181264096,0.39257716,103210.0,103200.0,0.00044182]
[1738181264304,0.24724316,103210.0,103200.0,0.14878982]
[1738181264512,0.11724316,103210.0,103200.0,0.14878982]
[1738181264712,0.12645767,103220.0,103210.0,0.145334]
[1738181264943,0.02,103210.0,103200.0,0.14678982]
[1738181265154,0.09724316,103210.0,103200.0,0.14678982]
[1738181265337,0.12160083,103210.0,103200.0,0.14578982]
[1738181265570,0.09724316,103210.0,103200.0,0.14578982]
[1738181265854,0.12160083,103210.0,103200.0,0.14578982]
[1738181266052,0.10160083,103210.0,103200.0,0.14578982]
[1738181266260,0.09724316,103210.0,103200.0,0.14578982]
[1738181266672,0.12160083,103210.0,103200.0,0.14578982]
[1738181266875,0.09724316,103210.0,103200.0,0.14978982]
[1738181267091,0.12161324,103210.0,103200.0,0.14978982]
[1738181267299,0.09724316,103210.0,103200.0,0.14978982]
[1738181267512,0.10160083,103210.0,103200.0,0.14978982]
[1738181267927,0.02,103210.0,103200.0,0.34358482]
[1738181268136,0.14645767,103220.0,103210.0,0.145334]
[1738181268339,0.23934316,103220.0,103210.0,0.145334]
[1738181268971,0.24370083,103220.0,103210.0,0.145334]
[1738181269396,0.1421,103220.0,103210.0,0.145334]
[1738181269635,0.00435767,103230.0,103210.0,0.145334]
[1738181269636,0.02,103230.0,103220.0,0.14532]
[1738181269843,0.0774,103240.0,103230.0,0.145306]
[1738181270061,0.065,103250.0,103240.0,0.145292]
[1738181270283,0.02435767,103240.0,103230.0,0.145306]
[1738181270493,0.30648316,103250.0,103230.0,0.145306]
[1738181270494,0.16660083,103250.0,103230.0,0.145306]
[1738181270672,0.10175767,103260.0,103250.0,0.145278]
[1738181270906,0.17900083,103260.0,103250.0,0.145278]
[1738181271330,0.19900083,103260.0,103250.0,0.14542204]
[1738181271537,0.19890091,103260.0,103250.0,0.14542204]
[1738181271749,0.19464316,103260.0,103250.0,0.14542204]
[1738181271953,0.17900083,103260.0,103250.0,0.14542204]
[1738181272411,0.46990716,103260.0,103250.0,0.00014404]
[1738181272588,0.46990716,103260.0,103250.0,0.14542204]
[1738181272804,0.54546579,103260.0,103250.0,0.00014404]
[1738181273019,0.84574245,103260.0,103250.0,0.00014404]
[1738181273227,0.59466579,103260.0,103250.0,0.00014404]
[1738181273481,0.59466579,103260.0,103250.0,0.00414404]
[1738181273701,0.65345342,103260.0,103250.0,0.00414404]
[1738181273903,0.89453008,103260.0,103250.0,0.00414404]
[1738181274541,0.89453008,103260.0,103250.0,0.00014404]
[1738181274883,0.89953008,103260.0,103250.0,0.00114404]
[1738181275292,0.64845342,103260.0,103250.0,0.00114404]
[1738181275495,0.57289479,103260.0,103250.0,0.00114404]
[1738181275702,0.58257487,103260.0,103250.0,0.00114404]
[1738181276387,0.84365153,103260.0,103250.0,0.00114404]
[1738181276587,0.84365153,103260.0,103210.0,0.193779]
[1738181276588,0.02435767,103220.0,103210.0,0.193777]
[1738181276751,0.12160083,103220.0,103210.0,0.193777]
[1738181276949,0.11724316,103220.0,103210.0,0.193777]
[1738181277364,0.02,103230.0,103220.0,0.14532]
[1738181277570,0.47724208,103260.0,103240.0,0.145292]
[1738181277571,0.09724316,103250.0,103240.0,0.145292]
[1738181277978,0.02435767,103240.0,103230.0,0.145306]
[1738181278177,0.00435767,103220.0,103210.0,0.193767]
[1738181278382,0.12160083,103220.0,103210.0,0.193767]
[1738181278839,0.11724316,103220.0,103210.0,0.193767]
[1738181279016,0.12160083,103220.0,103210.0,0.193767]
[1738181279219,0.00435767,103210.0,103200.0,0.00029778]
[1738181279430,0.09724316,103210.0,103200.0,0.00044191]
[1738181279780,0.09724316,103210.0,103200.0,0.14578991]
[1738181279998,0.09724316,103210.0,103200.0,0.00044191]
[1738181280240,0.09724316,103210.0,103200.0,0.14578991]
[1738181280469,0.00435767,103210.0,103200.0,0.33958191]
[1738181280696,0.13005767,103220.0,103210.0,0.145334]
[1738181280920,0.39733525,103250.0,103210.0,0.145334]
[1738181280921,0.0496422,103250.0,103230.0,0.339043]
[1738181281150,0.0001422,103250.0,103240.0,0.168292]
[1738181281351,0.0001422,103250.0,103240.0,0.41553516]
[1738181281352,2e-07,103250.0,103240.0,0.41553516]
[1738181281670,0.101,103300.0,103290.0,0.145222]
[1738181281869,0.02,103290.0,103280.0,0.145236]
[1738181282082,0.02435767,103290.0,103280.0,0.338873]
[1738181282284,0.26394829,103300.0,103290.0,0.145222]
[1738181282484,0.08618508,103300.0,103290.0,0.145222]
[1738181282894,0.08618508,103300.0,103290.0,0.168222]
[1738181283101,0.08618508,103300.0,103290.0,0.318222]
[1738181283258,0.08618508,103300.0,103290.0,0.42110749]
[1738181283702,0.08618508,103300.0,103290.0,1.92110749]
[1738181284320,0.08618508,103300.0,103290.0,1.91546516]
[1738181284524,0.08618508,103300.0,103290.0,1.92446516]
[1738181284525,0.00147995,103300.0,103290.0,1.92446516]
[1738181284737,0.00147995,103300.0,103290.0,1.827222]
[1738181284988,0.00147995,103300.0,103290.0,1.92446516]
[1738181285201,9.5e-07,103300.0,103290.0,0.55895527]
[1738181285612,9.5e-07,103300.0,103290.0,2.05895527]
[1738181285825,0.0116618,103320.0,103310.0,0.145194]
[1738181286037,0.01175471,103320.0,103310.0,0.49351382]
[1738181286259,0.01175471,103320.0,103310.0,0.51651382]
[1738181286667,0.01175471,103320.0,103310.0,2.01651382]
[1738181287161,0.01175471,103320.0,103310.0,2.11651382]
[1738181287417,0.01175471,103320.0,103310.0,2.12551382]
[1738181287634,0.07539925,103350.0,103340.0,0.145151]
[1738181287843,0.00029925,103350.0,103340.0,0.168151]
[1738181288258,0.10190008,103350.0,103340.0,0.145151]
[1738181288523,0.00029925,103350.0,103340.0,0.168151]
[1738181289038,0.00029925,103350.0,103340.0,0.41539416]
[1738181289257,0.00029925,103350.0,103340.0,0.41839416]
[1738181289528,0.00029925,103350.0,103340.0,0.51839416]
[1738181289778,0.00029925,103350.0,103340.0,0.52403649]
[1738181289992,0.0001419,103360.0,103350.0,0.168137]
[1738181290207,0.00013942,103360.0,103350.0,0.70997082]
[1738181290419,0.00029862,103370.0,103360.0,0.17376533]
[1738181290652,1e-08,103380.0,103370.0,0.56918566]
[1738181290855,0.000142,103390.0,103370.0,0.66642882]
[1738181291059,0.000142,103390.0,103380.0,0.51533816]
[1738181291366,0.000142,103390.0,103380.0,0.168095]
[1738181291553,0.02449967,103390.0,103360.0,0.338608]
[1738181291765,0.02449967,103390.0,103360.0,0.145123]
[1738181291766,0.02435767,103370.0,103360.0,0.145123]
[1738181291974,0.00435767,103360.0,103350.0,0.145128]
[1738181292183,0.02,103350.0,103330.0,0.58977666]
[1738181292395,0.00435767,103340.0,103330.0,0.33883942]
[1738181292638,0.11724316,103350.0,103340.0,0.145151]
[1738181292855,0.02435767,103370.0,103350.0,0.145137]
[1738181293076,0.10445767,103380.0,103370.0,0.145109]
[1738181293500,0.00435767,103370.0,103360.0,0.145123]
[1738181293703,0.00435767,103370.0,103350.0,0.193505]
[1738181293704,0.00435767,103360.0,103350.0,0.193505]
[1738181295436,0.02,103360.0,103350.0,0.193505]
[1738181295650,0.02435767,103370.0,103360.0,0.145123]
[1738181295868,0.08445767,103380.0,103360.0,0.145123]
[1738181296093,0.0801,103380.0,103370.0,0.41918566]
[1738181296304,0.00449967,103390.0,103380.0,0.145095]
[1738181296986,0.02,103380.0,103370.0,0.145109]
[1738181297196,0.000142,103390.0,103380.0,0.145095]
[1738181297402,0.00449967,103390.0,103380.0,0.145095]
[1738181297605,0.00449967,103390.0,103380.0,1.645095]
[1738181298270,0.000142,103390.0,103380.0,1.668095]
[1738181298892,0.000142,103390.0,103380.0,1.77133816]
[1738181299095,0.000142,103390.0,103380.0,1.91533816]
[1738181299308,0.000142,103390.0,103380.0,0.41533816]
[1738181299514,0.000142,103390.0,103380.0,0.4497181]
[1738181299729,0.0156636,103400.0,103380.0,0.4497181]
[1738181299730,0.0156636,103400.0,103390.0,0.023]
[1738181299944,0.01580754,103400.0,103390.0,0.54178076]
[1738181300493,0.01580754,103400.0,103390.0,0.56929385]
[1738181300913,0.01580754,103400.0,103390.0,0.47205069]
[1738181301125,0.01580754,103400.0,103390.0,0.4445376]
[1738181301353,0.01580754,103400.0,103390.0,0.54178076]
[1738181301562,0.01580754,103400.0,103390.0,0.56929385]
[1738181301772,5.4e-07,103400.0,103390.0,0.56929385]
[1738181301988,0.0001419,103410.0,103400.0,0.37095949]
[1738181302204,0.0001419,103410.0,103400.0,0.46820265]
[1738181302205,0.00062161,103410.0,103400.0,0.46820265]
[1738181302634,0.00062161,103410.0,103400.0,1.94068956]
[1738181302880,0.00062161,103410.0,103400.0,1.96720265]
[1738181303068,0.00062161,103410.0,103400.0,1.96811981]
[1738181303285,0.00062161,103410.0,103400.0,2.04960672]
[1738181303500,0.00062161,103410.0,103400.0,0.52431016]
[1738181303715,0.00062161,103410.0,103400.0,0.51531016]
[1738181303924,1e-08,103430.0,103420.0,0.54611566]
[1738181304196,0.00449997,103460.0,103450.0,0.167997]
[1738181304407,0.0201423,103460.0,103450.0,0.41907366]
[1738181304618,0.00028618,103460.0,103450.0,0.41907366]
[1738181304822,0.00028618,103460.0,103450.0,1.91907366]
[1738181305260,0.00464385,103460.0,103450.0,1.89607366]
[1738181305473,0.02028618,103460.0,103450.0,0.144997]
[1738181305689,0.02464385,103460.0,103450.0,0.144997]
[1738181305893,0.02028618,103460.0,103450.0,0.144897]
[1738181306145,0.02028618,103460.0,103450.0,0.153897]
[1738181306146,0.02454385,103460.0,103450.0,0.153897]
[1738181306371,0.02454385,103460.0,103450.0,0.144897]
[1738181306533,0.02018618,103460.0,103450.0,0.144897]
[1738181306739,0.02018618,103460.0,103450.0,0.151897]
[1738181306961,0.00454385,103460.0,103450.0,0.151897]
[1738181307372,0.02454385,103460.0,103450.0,0.144897]
[1738181308051,0.11742934,103460.0,103450.0,0.144897]
[1738181308241,0.11742934,103460.0,103440.0,0.60917689]
[1738181308242,0.02435767,103440.0,103420.0,0.14503]
[1738181308384,0.02435767,103430.0,103410.0,0.83125666]
[1738181308586,0.02435767,103430.0,103420.0,0.193384]
[1738181308784,0.02,103430.0,103420.0,0.193384]
[1738181308993,0.02,103430.0,103420.0,0.386758]
[1738181309277,0.05395767,103440.0,103430.0,0.145025]
[1738181309528,0.07395767,103440.0,103430.0,0.145025]
[1738181310024,0.05395767,103440.0,103430.0,0.145025]
[1738181310298,0.07395767,103440.0,103430.0,0.145025]
[1738181310565,0.02,103450.0,103430.0,0.42810166]
[1738181310791,0.00454385,103460.0,103450.0,0.144997]
[1738181311012,0.00018618,103460.0,103450.0,0.41907366]
[1738181311249,0.02018618,103460.0,103450.0,0.41907366]
[1738181311485,0.02454385,103460.0,103450.0,0.41907366]
[1738181311692,0.02454385,103460.0,103450.0,0.144997]
[1738181312416,0.02454385,103460.0,103420.0,0.21238259]
[1738181312417,0.00435767,103430.0,103420.0,0.21238259]
[1738181312824,0.00435767,103420.0,103410.0,0.00949981]
[1738181313052,0.11724316,103420.0,103400.0,0.338472]
[1738181313268,0.11724316,103420.0,103400.0,0.14506]
[1738181313269,0.02,103410.0,103400.0,0.14506]
[1738181313489,0.00435767,103420.0,103410.0,0.145053]
[1738181313908,0.00435767,103420.0,103410.0,0.361445]
[1738181314329,0.02435767,103420.0,103410.0,0.338445]
[1738181314759,0.128,103430.0,103420.0,0.145039]
[1738181314760,0.13235767,103430.0,103420.0,0.145039]
[1738181314969,0.15235767,103430.0,103420.0,0.145039]
[1738181315637,0.24524316,103430.0,103420.0,0.009]
[1738181315849,0.00435767,103420.0,103410.0,0.145053]
[1738181316157,0.15235767,103430.0,103420.0,0.145039]
[1738181316371,0.00435767,103420.0,103410.0,0.53184]
[1738181316589,0.00435767,103410.0,103400.0,1.693411]
[1738181316810,0.00435767,103410.0,103400.0,0.193411]
[1738181316811,0.02,103410.0,103400.0,0.193411]
[1738181317028,0.02,103410.0,103390.0,0.63881542]
[1738181317029,0.02435767,103400.0,103390.0,0.193426]
[1738181317454,0.02435767,103400.0,103380.0,0.39701216]
[1738181317455,0.02435767,103390.0,103380.0,0.24226416]
[1738181317668,0.02435767,103390.0,103380.0,0.22299018]
[1738181317888,0.14714316,103390.0,103380.0,0.00077791]
[1738181318110,0.29222416,103390.0,103380.0,0.00077791]
[1738181318322,0.53702618,103390.0,103380.0,0.00077791]
[1738181318969,0.29222416,103390.0,103380.0,0.00977791]
[1738181319180,0.14714316,103390.0,103380.0,0.00077791]
[1738181319662,0.29222416,103390.0,103380.0,0.00377791]
[1738181319882,0.14714316,103390.0,103380.0,0.00377791]
[1738181320097,0.29222416,103390.0,103380.0,0.00377791]
[1738181320324,0.14714316,103390.0,103380.0,0.00377791]
[1738181320538,0.29222416,103390.0,103380.0,0.00377791]
[1738181321642,0.14714316,103390.0,103380.0,0.14887291]
[1738181322301,0.15150083,103390.0,103380.0,0.14887291]
[1738181322509,0.14714316,103390.0,103380.0,1.50377791]
[1738181322724,0.34954673,103390.0,103380.0,0.00377791]
[1738181322942,0.34833768,103390.0,103380.0,0.00077791]
[1738181323415,0.02,103370.0,103360.0,0.145123]
[1738181323634,0.02,103370.0,103360.0,0.338611]
[1738181323855,0.59016068,103390.0,103360.0,0.145123]
[1738181324072,0.63047428,103380.0,103360.0,0.145123]
[1738181324282,0.02435767,103360.0,103350.0,0.19364694]
[1738181324497,0.11724316,103360.0,103350.0,0.00014394]
[1738181324707,0.11724316,103360.0,103350.0,0.14528094]
[1738181324708,0.09724316,103360.0,103350.0,0.14528094]
[1738181325790,0.09724316,103360.0,103350.0,0.15428094]
[1738181326018,0.09724316,103360.0,103350.0,0.00914394]
[1738181326231,0.24357551,103360.0,103350.0,0.00914394]
[1738181326444,0.09724316,103360.0,103350.0,0.00914394]
[1738181326687,0.09724316,103360.0,103350.0,0.15428094]
[1738181326903,0.36133098,103360.0,103350.0,0.00914394]
[1738181327621,0.50772433,103360.0,103350.0,0.00493103]
[1738181327856,0.58782433,103360.0,103350.0,0.00493103]
[1738181328086,0.145137,103350.0,103340.0,0.0002982]
[1738181328305,0.34094657,103350.0,103340.0,0.00043762]
[1738181328531,0.61503692,103350.0,103340.0,0.00043762]
[1738181328741,0.22468,103320.0,103310.0,0.0002982]
[1738181328960,0.32192316,103320.0,103310.0,0.0002982]
[1738181329168,0.36772316,103320.0,103310.0,0.0002982]
[1738181329390,0.46507992,103320.0,103310.0,0.0002982]
[1738181330680,0.36772316,103320.0,103310.0,0.0002982]
[1738181331126,0.62879982,103320.0,103310.0,0.0002982]
[1738181331343,0.82758745,103320.0,103310.0,0.0002982]
[1738181331555,0.81758745,103320.0,103310.0,0.0002982]
[1738181331769,0.41651079,103320.0,103310.0,0.0002982]
[1738181331995,0.27133079,103320.0,103310.0,0.1484922]
[1738181332204,0.1984453,103320.0,103310.0,0.145194]
[1738181332418,0.2034453,103320.0,103310.0,0.146194]
[1738181332642,0.2034453,103320.0,103310.0,1.669194]
[1738181332643,0.0781453,103320.0,103310.0,1.669194]
[1738181332857,0.07378763,103320.0,103310.0,0.145194]
[1738181333072,0.07378763,103320.0,103310.0,0.148194]
[1738181333294,0.10224316,103320.0,103310.0,1.648194]
[1738181333526,0.29152138,103320.0,103310.0,1.648194]
[1738181333740,0.29152138,103320.0,103310.0,0.148194]
[1738181333953,0.14634138,103320.0,103310.0,0.148194]
[1738181334168,0.10224316,103320.0,103310.0,0.148194]
[1738181334606,0.12660083,103320.0,103310.0,0.148194]
[1738181334864,0.00935767,103320.0,103310.0,1.648194]
[1738181335074,0.02935767,103320.0,103310.0,1.671194]
[1738181335303,0.025,103320.0,103310.0,1.648194]
[1738181335537,0.005,103320.0,103310.0,0.148194]
[1738181335957,0.005,103320.0,103310.0,0.003]
[1738181335958,0.24742316,103320.0,103310.0,0.003]
[1738181336190,0.37959874,103320.0,103310.0,0.003]
[1738181336634,0.14754316,103320.0,103310.0,0.148194]
[1738181337075,0.16754316,103320.0,103310.0,0.148194]
[1738181337288,0.16287681,103320.0,103310.0,0.148194]
[1738181337495,0.28805681,103320.0,103310.0,0.003]
[1738181337933,0.28805681,103320.0,103290.0,0.145217]
[1738181337934,0.0969,103300.0,103290.0,0.145217]
[1738181338354,0.0969,103300.0,103290.0,0.14530991]
[1738181338813,0.00435767,103310.0,103300.0,0.168208]
[1738181339022,0.11724316,103310.0,103300.0,0.145208]
[1738181339237,0.49218729,103310.0,103290.0,0.00609291]
[1738181339442,0.29016123,103300.0,103290.0,0.00609291]
[1738181339649,0.28895116,103300.0,103290.0,9.291e-05]
[1738181339866,0.77682782,103300.0,103290.0,9.291e-05]
[1738181340276,0.82561545,103300.0,103290.0,9.291e-05]
[1738181340519,0.417036,103280.0,103270.0,0.00029841]
[1738181340698,0.76535582,103280.0,103270.0,0.00029841]
[1738181340915,0.51427916,103280.0,103270.0,0.00029841]
[1738181341742,0.56306679,103280.0,103270.0,0.00029841]
[1738181341956,0.57906679,103280.0,103270.0,0.00129841]
[1738181342167,0.67642355,103280.0,103270.0,0.00129841]
[1738181342439,0.92750021,103280.0,103270.0,0.00129841]
[1738181342644,0.91750021,103280.0,103270.0,0.00129841]
[1738181342846,0.56906679,103280.0,103270.0,0.00129841]
[1738181343064,0.59767014,103280.0,103270.0,0.00129841]
[1738181343271,0.44767014,103280.0,103270.0,0.00129841]
[1738181343707,0.30679181,103280.0,103270.0,0.14654841]
[1738181343914,0.20864651,103280.0,103270.0,0.14654841]
[1738181344121,0.35388251,103280.0,103270.0,0.00129841]
[1738181344367,0.50388251,103280.0,103270.0,0.00129841]
[1738181344629,0.50388251,103280.0,103270.0,0.00229841]
[1738181344630,0.50988251,103280.0,103270.0,0.00229841]
[1738181344868,0.73035582,103280.0,103270.0,0.00029841]
[1738181345095,0.73035582,103280.0,103240.0,0.00029862]
[1738181345096,0.295278,103250.0,103240.0,0.00029862]
[1738181345300,0.47102116,103250.0,103240.0,0.00029862]
[1738181346176,0.32574316,103250.0,103240.0,0.14559062]
[1738181346400,0.32102116,103250.0,103240.0,0.00077857]
[1738181346605,0.47102116,103250.0,103240.0,0.00077857]
[1738181346813,0.56837792,103250.0,103240.0,0.00077857]
[1738181347229,0.19574316,103250.0,103240.0,0.14607057]
[1738181347437,0.387347,103270.0,103250.0,0.145278]
[1738181347438,0.02435767,103260.0,103250.0,0.145278]
[1738181347659,0.225757,103270.0,103250.0,0.532664]
[1738181347907,0.02,103250.0,103240.0,0.19549057]
[1738181348126,0.09724316,103250.0,103240.0,0.14707057]
[1738181348327,0.09724316,103250.0,103240.0,0.14607057]
[1738181348542,0.28900767,103250.0,103240.0,0.00077857]
[1738181348999,0.09724316,103250.0,103240.0,0.14607057]
[1738181349248,0.09724316,103250.0,103240.0,0.14907057]
[1738181350361,0.24252116,103250.0,103240.0,0.00377857]
[1738181350560,0.24252116,103250.0,103240.0,0.00577857]
[1738181350810,0.39252116,103250.0,103240.0,0.00577857]
[1738181351017,0.48987792,103250.0,103240.0,0.00577857]
[1738181351229,0.48987792,103250.0,103240.0,0.00377857]
[1738181351712,0.49287792,103250.0,103240.0,0.00077857]
[1738181351989,0.49887792,103250.0,103240.0,0.00177857]
[1738181352482,0.552753,103240.0,103220.0,0.339074]
[1738181352686,0.12160083,103230.0,103220.0,0.19376]
[1738181352912,0.02,103240.0,103230.0,0.145306]
[1738181353113,0.159,103250.0,103240.0,0.145292]
[1738181353114,0.01335767,103250.0,103240.0,0.145292]
[1738181353331,0.25152116,103250.0,103240.0,0.145292]
[1738181353544,0.02435767,103230.0,103220.0,0.387502]
[1738181353751,0.02435767,103230.0,103220.0,0.390502]
[1738181353962,0.13420843,103230.0,103220.0,0.390502]
[1738181354171,0.13420843,103230.0,103220.0,0.19375]
[1738181354385,0.11724316,103230.0,103220.0,0.19375]
[1738181354605,0.11724316,103230.0,103220.0,0.20275]
[1738181354891,0.02435767,103230.0,103220.0,0.19375]
[1738181355236,0.02,103240.0,103230.0,0.145306]
[1738181355460,0.02435767,103250.0,103240.0,0.145292]
[1738181356442,0.07335767,103260.0,103240.0,0.145292]
[1738181356651,0.07335767,103260.0,103250.0,0.145278]
[1738181356652,0.02089826,103260.0,103250.0,0.145278]
[1738181356863,0.02089826,103260.0,103250.0,0.33898]
[1738181357084,0.00435767,103240.0,103230.0,0.19374]
[1738181357288,0.02,103230.0,103220.0,0.158313]
[1738181357504,0.02,103230.0,103220.0,0.145313]
[1738181357768,0.02,103250.0,103240.0,0.145292]
[1738181357970,0.02435767,103250.0,103240.0,0.148292]
[1738181358182,0.00435767,103250.0,103240.0,0.171292]
[1738181358516,0.00435767,103250.0,103240.0,0.168292]
[1738181358735,0.02435767,103250.0,103240.0,0.168292]
[1738181358948,0.00435767,103250.0,103240.0,0.168292]
[1738181359158,0.02877288,103250.0,103240.0,0.70916145]
[1738181359368,0.02877288,103250.0,103240.0,0.85916145]
[1738181359581,0.02877288,103250.0,103240.0,0.60924516]
[1738181359996,0.02877288,103250.0,103240.0,0.512002]
[1738181360452,0.00450135,103260.0,103250.0,0.168278]
[1738181360828,0.00014368,103260.0,103250.0,0.26552116]
[1738181361050,0.00014368,103260.0,103250.0,0.41552116]
[1738181361756,0.04878763,103280.0,103270.0,0.31825]
[1738181361961,0.04926778,103280.0,103270.0,0.66540945]
[1738181362166,0.0001421,103290.0,103280.0,0.168236]
[1738181362367,0.0001421,103290.0,103280.0,0.41547916]
[1738181362557,0.00435767,103320.0,103310.0,0.318194]
[1738181362758,0.00435767,103330.0,103320.0,0.488737]
[1738181362961,0.05368817,103340.0,103330.0,0.39508129]
[1738181363153,0.01797191,103350.0,103340.0,0.145151]
[1738181363572,0.018116,103350.0,103340.0,0.168151]
[1738181364177,0.00014409,103350.0,103340.0,0.26539416]
[1738181364555,0.00314409,103350.0,103340.0,0.168151]
[1738181364962,0.00014409,103350.0,103340.0,0.168151]
[1738181365162,0.00014409,103350.0,103340.0,0.26539416]
[1738181365391,0.00014409,103350.0,103340.0,0.41739416]
[1738181365792,0.00014409,103350.0,103340.0,0.41939416]
[1738181366988,0.00014409,103350.0,103340.0,0.299151]
[1738181367262,0.00014409,103350.0,103340.0,0.39639416]
[1738181367463,0.00014409,103350.0,103340.0,0.41939416]
[1738181367881,0.00014409,103350.0,103340.0,0.322151]
[1738181368083,0.00014409,103350.0,103340.0,0.34164331]
[1738181368380,0.00014409,103350.0,103340.0,0.33964331]
[1738181368510,0.00014409,103350.0,103340.0,0.43488647]
[1738181368718,0.00014409,103350.0,103340.0,0.43888647]
[1738181368913,0.00014409,103350.0,103340.0,0.44788647]
[1738181369114,0.00014409,103350.0,103340.0,0.43888647]
[1738181369764,0.00014409,103350.0,103340.0,0.43488647]
[1738181369967,0.00014409,103350.0,103340.0,0.4405288]
[1738181370207,0.00114409,103350.0,103340.0,0.5465288]
[1738181370537,0.00014409,103350.0,103340.0,0.5495288]
[1738181370790,0.00014409,103350.0,103340.0,0.5405288]
[1738181370993,0.00014409,103350.0,103340.0,0.53988647]
[1738181371197,0.000142,103360.0,103340.0,0.42588647]
[1738181371400,0.000142,103360.0,103350.0,0.145137]
[1738181371599,0.000142,103360.0,103350.0,0.66529645]
[1738181372964,0.000142,103360.0,103350.0,0.56805329]
[1738181373773,0.000142,103360.0,103350.0,0.57605329]
[1738181373935,0.000142,103360.0,103350.0,0.58005329]
[1738181374332,0.02,103380.0,103370.0,0.145109]
[1738181374761,0.0973,103360.0,103350.0,0.157137]
[1738181375230,0.3408755,103360.0,103350.0,0.012]
[1738181375356,0.46966616,103360.0,103350.0,0.012]
[1738181375563,0.46966616,103360.0,103350.0,0.004]
[1738181375764,0.31966616,103360.0,103350.0,0.004]
[1738181376167,0.31966616,103360.0,103350.0,0.145137]
[1738181376168,0.0973,103360.0,103350.0,0.145137]
[1738181376558,0.17454316,103360.0,103350.0,0.145137]
[1738181376756,0.17884283,103360.0,103350.0,0.145137]
[1738181376968,0.0773,103360.0,103350.0,0.145137]
[1738181377175,0.0456,103370.0,103360.0,0.145123]
[1738181377588,0.14284316,103370.0,103360.0,0.145123]
[1738181377808,0.02429967,103360.0,103350.0,0.148137]
[1738181378176,0.04989967,103370.0,103360.0,0.145123]
[1738181378365,0.0996,103380.0,103370.0,0.145109]
[1738181378366,0.0796,103380.0,103370.0,0.145109]
[1738181378607,0.10389967,103380.0,103370.0,0.145109]
[1738181379018,0.08389967,103380.0,103370.0,0.145109]
[1738181379235,0.10389967,103380.0,103370.0,0.145109]
[1738181380303,0.10689967,103380.0,103370.0,0.145109]
[1738181381194,0.10789967,103380.0,103370.0,0.146109]
[1738181381616,0.10789967,103380.0,103370.0,0.169109]
[1738181381617,0.0836,103380.0,103370.0,0.169109]
[1738181381832,0.004,103380.0,103370.0,0.41902529]
[1738181382269,0.00829967,103380.0,103370.0,0.146109]
[1738181382484,0.00529967,103380.0,103370.0,0.146109]
[1738181382692,0.001,103380.0,103370.0,0.169109]
[1738181382896,0.04969967,103390.0,103380.0,0.145095]
[1738181383102,0.05017944,103390.0,103380.0,0.145095]
[1738181383513,0.1474226,103390.0,103380.0,0.145095]
[1738181383665,0.14312293,103390.0,103380.0,0.145095]
[1738181384075,0.32492725,103390.0,103380.0,0.001]
[1738181384277,0.17984625,103390.0,103380.0,0.003]
[1738181384600,0.17984625,103390.0,103380.0,0.148095]
[1738181384958,0.71714415,103390.0,103380.0,0.003]
[1738181385169,0.71714415,103390.0,103350.0,0.0002982]
[1738181385170,0.227623,103360.0,103350.0,0.0002982]
[1738181385381,0.56112846,103360.0,103350.0,0.0002982]
[1738181385596,0.60991609,103360.0,103350.0,0.0002982]
[1738181385803,0.57215379,103360.0,103350.0,0.0002982]
[1738181386028,0.42703079,103360.0,103350.0,0.0002982]
[1738181386235,0.27703079,103360.0,103350.0,0.1454352]
[1738181386453,0.27703079,103360.0,103350.0,0.1474352]
[1738181386666,0.27703079,103360.0,103350.0,0.0002982]
[1738181386667,0.42215379,103360.0,103350.0,0.0002982]
[1738181386877,0.43015379,103360.0,103350.0,0.0022982]
[1738181387113,0.28503079,103360.0,103350.0,0.0022982]
[1738181387327,0.20778763,103360.0,103350.0,0.1464352]
[1738181387528,0.1840873,103360.0,103350.0,0.1704352]
[1738181387736,0.15529967,103360.0,103350.0,0.1474352]
[1738181388810,0.26377313,103360.0,103350.0,0.1484352]
[1738181389011,0.37336616,103360.0,103350.0,0.0012982]
[1738181389216,0.37336616,103360.0,103350.0,0.0002982]
[1738181389447,0.37336616,103360.0,103350.0,0.0052982]
[1738181389656,0.52336616,103360.0,103350.0,0.0072982]
[1738181389874,0.62072292,103360.0,103350.0,0.0072982]
[1738181390065,0.62072292,103360.0,103350.0,0.0002982]
[1738181390521,0.62072292,103360.0,103350.0,0.0012982]
[1738181390522,0.53136616,103360.0,103350.0,0.0012982]
[1738181390744,0.54136616,103360.0,103350.0,0.0012982]
[1738181390952,0.02429967,103310.0,103300.0,0.387203]
[1738181391382,0.02429967,103300.0,103290.0,0.193616]
[1738181392345,0.02429967,103300.0,103290.0,0.19376009]
[1738181392555,0.02529967,103300.0,103290.0,0.20276009]
[1738181392769,0.0969,103300.0,103290.0,0.20276009]
[1738181392980,0.33281548,103300.0,103290.0,0.00914409]
[1738181393192,0.33281548,103300.0,103290.0,0.01214409]
[1738181393193,0.37660544,103300.0,103290.0,0.01214409]
[1738181394075,0.51435116,103300.0,103290.0,0.01214409]
[1738181394281,0.52435116,103300.0,103290.0,0.01214409]
[1738181394973,0.51435116,103300.0,103290.0,0.00914409]
[1738181395191,0.7638037,103300.0,103290.0,0.01214409]
[1738181395395,0.7638037,103300.0,103240.0,0.33928862]
[1738181395396,0.00429967,103250.0,103240.0,0.33928862]
[1738181396039,0.02226972,103260.0,103250.0,0.193688]
[1738181396260,0.02216216,103260.0,103250.0,0.387382]
[1738181396687,0.02216216,103260.0,103250.0,0.38786215]
[1738181396898,0.11510565,103260.0,103250.0,0.38786215]
[1738181397322,0.11610565,103260.0,103250.0,0.39686215]
[1738181397564,0.26258024,103260.0,103250.0,0.00977835]
[1738181397781,0.24350716,103260.0,103250.0,0.00977835]
[1738181398213,0.09824316,103260.0,103250.0,0.15505635]
[1738181398426,0.09824316,103260.0,103250.0,0.15905635]
[1738181398620,0.09724316,103260.0,103250.0,0.15005635]
[1738181398822,0.10154283,103260.0,103250.0,0.14605635]
[1738181399138,0.1268,103270.0,103260.0,0.145264]
[1738181399349,0.25681051,103270.0,103260.0,0.145264]
[1738181399758,0.02,103260.0,103250.0,0.33974435]
[1738181400020,0.021,103260.0,103250.0,0.34674435]
[1738181400240,0.13109967,103270.0,103260.0,0.145264]